fUSD/lending_fUSD_20250702
["ID","MTS","AMOUNT","RATE_DAILY","PERIOD"]
[369119559,1751490449340,150.5,0.00026041,120]
[369119560,1751490449772,150.5,0.00026031,120]
[369119561,1751490450229,150.5,0.00026021,120]
[369119613,1751490567839,168.19,0.00026039,120]
[369119615,1751490630089,389.17,0.00027034,120]
[369119619,1751490631748,-272.0,0.000228,5]
[369119620,1751490631758,-151.76,0.00023182,2]
[369119621,1751490631767,-150.0,0.00023774,2]
[369119622,1751490631777,-150.0,0.00023813,2]
[369119623,1751490631787,-250.0,0.00023865,2]
[369119624,1751490631797,-93.606305,0.00023886,2]
[369119625,1751490631820,-56.393695,0.00023886,2]
[369119626,1751490631829,-217.1,0.00023903,2]
[369119633,1751490632140,-34.88566874,0.00023915,2]
[369119634,1751490632152,-1795.93433126,0.00023915,2]
[369119635,1751490632161,-5000.0,0.00023951,2]
[369119636,1751490632173,-150.0,0.00023956,2]
[369119637,1751490632183,-389.17,0.0002403,2]
[369119638,1751490632192,-1200.0,0.00024049,2]
[369119639,1751490632203,-300.0,0.00024049,2]
[369119640,1751490632214,-150.0,0.00024082,2]
[369119641,1751490632223,-150.0,0.00024171,2]
[369119642,1751490632232,-158.98,0.00024178,2]
[369119643,1751490632244,-150.0,0.00024188,2]
[369119644,1751490632255,-1000.0,0.00024214,2]
[369119645,1751490632266,-150.0,0.00024227,2]
[369119646,1751490632276,-549.0,0.0002423,2]
[369119647,1751490632286,-23900.0,0.00024231,2]
[369119648,1751490632296,-150.0,0.00024311,2]
[369119649,1751490632306,-150.0,0.00024313,2]
[369119650,1751490632315,-150.0,0.0002433,2]
[369119651,1751490632326,-150.0,0.00024428,2]
[369119652,1751490632336,-150.0,0.0002443,2]
[369119653,1751490632345,-150.0,0.00024526,2]
[369119654,1751490632355,-150.0,0.00024529,2]
[369119655,1751490632364,-500.0,0.00024778,2]
[369119656,1751490632374,-300.0,0.00024859,2]
[369119657,1751490632383,-300.0,0.0002486,2]
[369119658,1751490632393,-9622.26,0.0002486,2]
[369119659,1751490632403,-9999.99,0.0002486,2]
[369119660,1751490632413,-1554.12,0.0002486,2]
[369119661,1751490632423,-4127.41,0.0002486,2]
[369119662,1751490632432,-3695.04,0.0002486,2]
[369119663,1751490632442,-150.99,0.0002486,2]
[369119664,1751490632452,-13025.0,0.0002486,2]
[369119665,1751490632461,-151.0,0.00024884,2]
[369119666,1751490632471,-151.0,0.00024884,2]
[369119667,1751490632480,-151.0,0.00024884,2]
[369119668,1751490632490,-151.0,0.00024884,2]
[369119669,1751490632499,-151.0,0.00024884,2]
[369119670,1751490632508,-151.0,0.00024884,2]
[369119671,1751490632517,-151.0,0.00024884,2]
[369119672,1751490632527,-151.0,0.00024884,2]
[369119673,1751490632537,-151.0,0.00024884,2]
[369119674,1751490632547,-151.0,0.00024884,2]
[369119675,1751490632556,-151.0,0.00024884,2]
[369119676,1751490632566,-151.0,0.00024884,2]
[369119677,1751490632576,-150.0,0.00024893,2]
[369119678,1751490632586,-150.0,0.00024896,2]
[369119679,1751490632596,-9999.99,0.00024899,2]
[369119680,1751490632605,-1206.57,0.000249,5]
[369119681,1751490632615,-999.99,0.000249,2]
[369119682,1751490632624,-1060.78070751,0.000249,12]
[369119683,1751490632633,-303.0,0.00024932,7]
[369119684,1751490632643,-200.0,0.00024998,2]
[369119685,1751490632652,-303.0,0.00025,7]
[369119686,1751490632662,-150.0,0.00025007,2]
[369119687,1751490632671,-150.0,0.00025012,2]
[369119688,1751490632680,-150.0,0.00025029,2]
[369119689,1751490632690,-521.0,0.00025032,2]
[369119690,1751490632700,-150.0,0.00025043,2]
[369119691,1751490632709,-1060.78070737,0.00025072,12]
[369119692,1751490632719,-150.0,0.00025083,2]
[369119693,1751490632728,-150.0,0.0002516,2]
[369119694,1751490632738,-250.0,0.0002519,2]
[369119695,1751490632748,-150.0,0.00025213,2]
[369119696,1751490632758,-150.0,0.00025223,2]
[369119697,1751490632767,-1060.78070737,0.00025245,12]
[369119698,1751490632777,-150.0,0.00025295,2]
[369119699,1751490632787,-155.55,0.00025324,2]
[369119700,1751490632796,-505.0,0.00025342,2]
[369119701,1751490632805,-150.0,0.00025346,2]
[369119702,1751490632815,-300.0,0.00025354,2]
[369119703,1751490632824,-6381.2233677,0.00025354,2]
[369119710,1751490637529,-199.08609128,0.00023851,2]
[369119711,1751490637540,-531.4186323,0.00025354,2]
[369119712,1751490637549,-151.0,0.00025354,2]
[369119713,1751490637559,-151.0,0.00025354,2]
[369119714,1751490637568,-151.0,0.00025354,2]
[369119715,1751490637577,-151.0,0.00025354,2]
[369119716,1751490637587,-303.29450176,0.00025354,2]
[369119717,1751490637597,-300.0,0.00025354,2]
[369119718,1751490637606,-228.57686132,0.00025354,2]
[369119719,1751490637619,-18.86037673,0.00025354,2]
[369119720,1751490637628,-300.0,0.00025354,2]
[369119721,1751490637637,-160.43314174,0.00025354,2]
[369119722,1751490637647,-151.0,0.00025354,2]
[369119723,1751490637656,-300.0,0.00025354,2]
[369119724,1751490637666,-300.0,0.00025354,2]
[369119725,1751490637675,-151.0,0.00025354,2]
[369119726,1751490637685,-300.0,0.00025354,2]
[369119727,1751490637695,-151.0,0.00025354,2]
[369119728,1751490637705,-300.0,0.00025354,2]
[369119729,1751490637715,-282.96640934,0.00025354,2]
[369119730,1751490637727,-17.03359066,0.00025354,2]
[369119731,1751490637737,-151.0,0.00025354,2]
[369119732,1751490637747,-300.0,0.00025354,2]
[369119733,1751490637756,-500.0,0.00025354,2]
[369119734,1751490637766,-151.0,0.00025354,2]
[369119735,1751490637776,-300.0,0.00025354,2]
[369119736,1751490637785,-500.0,0.00025354,2]
[369119737,1751490637795,-151.0,0.00025354,2]
[369119738,1751490637804,-500.0,0.00025354,2]
[369119739,1751490637813,-260.55665828,0.00025354,2]
[369119741,1751490637823,-300.0,0.00025354,2]
[369119743,1751490637833,-500.0,0.00025354,2]
[369119745,1751490637842,-300.0,0.00025354,2]
[369119747,1751490637852,-500.0,0.00025354,2]
[369119749,1751490637861,-300.0,0.00025354,2]
[369119751,1751490637871,-500.0,0.00025354,2]
[369119753,1751490637880,-500.0,0.00025354,2]
[369119755,1751490637889,-500.0,0.00025354,2]
[369119757,1751490637898,-500.0,0.00025354,2]
[369119759,1751490637908,-500.0,0.00025354,2]
[369119761,1751490637917,-500.0,0.00025354,2]
[369119763,1751490637927,-500.0,0.00025354,2]
[369119765,1751490637936,-500.0,0.00025354,2]
[369119767,1751490637945,-500.0,0.00025354,2]
[369119769,1751490637955,-500.0,0.00025354,2]
[369119771,1751490637964,-500.0,0.00025354,2]
[369119773,1751490637973,-500.0,0.00025354,2]
[369119775,1751490637982,-393.06306098,0.00025354,2]
[369119777,1751490637991,-500.0,0.00025354,2]
[369119779,1751490638001,-500.0,0.00025354,2]
[369119781,1751490638010,-300.0,0.00025354,2]
[369119783,1751490638019,-500.0,0.00025354,2]
[369119785,1751490638028,-500.0,0.00025354,2]
[369119787,1751490638038,-300.0,0.00025354,2]
[369119789,1751490638048,-500.0,0.00025354,2]
[369119791,1751490638057,-500.0,0.00025354,2]
[369119793,1751490638066,-300.0,0.00025354,2]
[369119795,1751490638076,-500.0,0.00025354,2]
[369119797,1751490638086,-300.0,0.00025354,2]
[369119799,1751490638095,-500.0,0.00025354,2]
[369119801,1751490638104,-207.4,0.00025354,2]
[369119803,1751490638113,-500.0,0.00025354,2]
[369119805,1751490638122,-300.0,0.00025354,2]
[369119807,1751490638131,-500.0,0.00025354,2]
[369119809,1751490638141,-500.0,0.00025354,2]
[369119811,1751490638150,-300.0,0.00025354,2]
[369119813,1751490638159,-500.0,0.00025354,2]
[369119815,1751490638175,-1000.0,0.00025354,2]
[369119816,1751490638186,-500.0,0.00025354,2]
[369119818,1751490638195,-300.0,0.00025354,2]
[369119820,1751490638207,-500.0,0.00025354,2]
[369119822,1751490638216,-1000.0,0.00025354,2]
[369119824,1751490638226,-500.0,0.00025354,2]
[369119826,1751490638235,-300.0,0.00025354,2]
[369119828,1751490638245,-500.0,0.00025354,2]
[369119830,1751490638258,-1000.0,0.00025354,2]
[369119832,1751490638267,-500.0,0.00025354,2]
[369119834,1751490638277,-257.5731563,0.00025354,2]
[369119836,1751490638286,-500.0,0.00025354,2]
[369119838,1751490638295,-1000.0,0.00025354,2]
[369119839,1751490638305,-500.0,0.00025354,2]
[369119841,1751490638314,-500.0,0.00025354,2]
[369119843,1751490638324,-1000.0,0.00025354,2]
[369119845,1751490638333,-500.0,0.00025354,2]
[369119847,1751490638343,-1000.0,0.00025354,2]
[369119849,1751490638352,-1000.0,0.00025354,2]
[369119851,1751490638361,-1000.0,0.00025354,2]
[369119853,1751490638370,-668.65185757,0.00025354,2]
[369119855,1751490638380,-1000.0,0.00025354,2]
[369119857,1751490638389,-1000.0,0.00025354,2]
[369119859,1751490638398,-1000.0,0.00025354,2]
[369119861,1751490638407,-1000.0,0.00025354,2]
[369119863,1751490638417,-1000.0,0.00025354,2]
[369119865,1751490638426,-1000.0,0.00025354,2]
[369119866,1751490638435,-1000.0,0.00025354,2]
[369119868,1751490638443,-593.16567621,0.00025354,2]
[369119871,1751490638456,-406.83432379,0.00025354,2]
[369119873,1751490638465,-1000.0,0.00025354,2]
[369119875,1751490638474,-1000.0,0.00025354,2]
[369119876,1751490638493,-1000.0,0.00025354,2]
[369119877,1751490638504,-1000.0,0.00025354,2]
[369119878,1751490638515,-500.0,0.00025354,2]
[369119879,1751490638524,-500.0,0.00025354,2]
[369119880,1751490638533,-151.0,0.00025354,2]
[369119881,1751490638542,-500.0,0.00025354,2]
[369119882,1751490638554,-500.0,0.00025354,2]
[369119883,1751490638563,-500.0,0.00025354,2]
[369119884,1751490638572,-500.0,0.00025354,2]
[369119885,1751490638581,-500.0,0.00025354,2]
[369119886,1751490638591,-297.62742721,0.00025354,2]
[369119887,1751490638602,-202.37257279,0.00025354,2]
[369119888,1751490638611,-500.0,0.00025354,2]
[369119889,1751490638621,-500.0,0.00025354,2]
[369119890,1751490638630,-500.0,0.00025354,2]
[369119891,1751490638639,-150.0,0.00025389,2]
[369119893,1751490638648,-7168.409754,0.00025409,2]
[369119895,1751490638658,-1060.78070737,0.00025417,13]
[369119897,1751490638667,-7433.6409149,0.00025464,2]
[369119899,1751490638676,-1500.0,0.000255,2]
[369119901,1751490638686,-300.0,0.00025501,2]
[369119903,1751490638695,-150.0,0.00025501,2]
[369119905,1751490638704,-150.0,0.00025501,2]
[369119906,1751490638713,-150.0,0.00025501,2]
[369119909,1751490638723,-150.0,0.00025501,2]
[369119910,1751490638733,-7708.68562875,0.00025519,2]
[369119912,1751490638742,-252.31,0.00025535,2]
[369119914,1751490638751,-774.0,0.00025566,2]
[369119916,1751490638760,-7358.39124619,0.00025574,2]
[369119919,1751490638772,-635.51575082,0.00025574,2]
[369119921,1751490638781,-1060.78070737,0.0002559,13]
[369119923,1751490638790,-4300.5452377,0.00025594,2]
[369119925,1751490638800,-617.2049,0.00025594,2]
[369119927,1751490638809,-6777.0001,0.00025594,2]
[369119929,1751490638819,-273.0139,0.00025594,2]
[369119931,1751490638827,-2089.709,0.00025594,2]
[369119933,1751490638836,-500.0,0.00025616,2]
[369119935,1751490638847,-774.0,0.00025624,2]
[369119937,1751490638856,-1701.0,0.00025628,2]
[369119939,1751490638866,-150.0,0.00025628,2]
[369119941,1751490638875,-150.0,0.00025628,2]
[369119943,1751490638885,-500.0,0.00025628,2]
[369119973,1751490639150,-500.0,0.00025628,2]
[369119975,1751490639173,-680.0,0.00025628,2]
[369119977,1751490639183,-500.0,0.00025628,2]
[369119979,1751490639192,-795.0,0.00025628,2]
[369119981,1751490639202,-500.0,0.00025628,2]
[369119983,1751490639211,-500.0,0.00025628,2]
[369119985,1751490639221,-150.0,0.00025628,2]
[369119987,1751490639230,-150.0,0.00025628,2]
[369119989,1751490639240,-500.0,0.00025628,2]
[369119991,1751490639249,-150.0,0.00025628,2]
[369119993,1751490639258,-158.01612503,0.00025628,2]
[369119995,1751490639268,-500.0,0.00025628,2]
[369119997,1751490639277,-500.0,0.00025628,2]
[369119999,1751490639286,-150.0,0.00025628,2]
[369120001,1751490639295,-500.0,0.00025628,2]
[369120003,1751490639305,-209.6453657,0.00025628,2]
[369120005,1751490639314,-8289.6815559,0.00025629,2]
[369120007,1751490639324,-4806.5412614,0.00025684,2]
[369120009,1751490639336,-3789.85851207,0.00025684,2]
[369120011,1751490639345,-774.0,0.00025702,7]
[369120013,1751490639355,-1000.0,0.00025704,2]
[369120015,1751490639364,-2500.0,0.00025704,2]
[369120017,1751490639373,-500.0,0.0002571,2]
[369120019,1751490639383,-720.48263444,0.0002571,2]
[369120021,1751490639395,-1550.16,0.0002571,2]
[369120023,1751490639406,-329.57065065,0.0002571,2]
[369120027,1751490639429,-294.75802627,0.0002571,2]
[369120029,1751490639442,-824.93485951,0.0002571,2]
[369120031,1751490639454,-9078.16897881,0.0002571,2]
[369120033,1751490639465,-1745.11144488,0.0002571,2]
[369120035,1751490639476,-1620.877762,0.0002571,2]
[369120037,1751490639487,-2290.16,0.0002571,2]
[369120040,1751490639497,-476.03,0.0002571,2]
[369120042,1751490639508,-1662.4,0.0002571,2]
[369120353,1751490642813,-15638.06514344,0.0002571,2]
[369120356,1751490642823,-1000.0,0.0002571,2]
[369120358,1751490642832,-2608.06441592,0.00025739,2]
[369120360,1751490642843,-6306.40214917,0.00025739,2]
[369120362,1751490642853,-200.0,0.00025759,7]
[369120364,1751490642862,-1060.78070737,0.00025762,13]
[369120366,1751490642872,-150.0,0.00025775,2]
[369120368,1751490642881,-150.0,0.00025775,2]
[369120370,1751490642890,-4300.54523769,0.00025783,2]
[369120372,1751490642900,-9244.301828,0.00025794,2]
[369120374,1751490642910,-173.96985912,0.00025802,2]
[369120376,1751490642919,-3235.12264956,0.00025849,2]
[369120378,1751490642929,-28868.187305,0.0002589,2]
[369120380,1751490642938,-303.0,0.0002589,7]
[369120382,1751490642948,-161.47985701,0.00025899,2]
[369120384,1751490642957,-5604.61487166,0.000259,2]
[369120386,1751490642966,-63852.7855,0.000259,2]
[369120388,1751490642975,-1701.0,0.00025902,2]
[369120389,1751490642984,-150.0,0.00025902,2]
[369120391,1751490642993,-150.0,0.00025902,2]
[369120393,1751490643003,-500.0,0.00025902,2]
[369120395,1751490643012,-500.0,0.00025902,2]
[369120397,1751490643021,-680.0,0.00025902,2]
[369120399,1751490643030,-500.0,0.00025902,2]
[369120401,1751490643039,-795.0,0.00025902,2]
[369120404,1751490643049,-500.0,0.00025902,2]
[369120405,1751490643058,-500.0,0.00025902,2]
[369120407,1751490643067,-150.0,0.00025902,2]
[369120409,1751490643077,-150.0,0.00025902,2]
[369120411,1751490643086,-500.0,0.00025902,2]
[369120413,1751490643095,-150.0,0.00025902,2]
[369120415,1751490643105,-500.0,0.00025902,2]
[369120417,1751490643114,-500.0,0.00025902,2]
[369120420,1751490643123,-500.0,0.00025902,2]
[369120421,1751490643132,-500.0,0.00025902,2]
[369120423,1751490643142,-256.59241585,0.00025902,2]
[369120425,1751490643151,-300.0,0.00025902,2]
[369120428,1751490643161,-158.98,0.00025905,2]
[369120430,1751490643173,-150.0,0.00025912,2]
[369120432,1751490643182,-218.51466477,0.00025924,2]
[369120434,1751490643191,-155.75592391,0.00025924,2]
[369120436,1751490643200,-1060.78070737,0.00025934,14]
[369120438,1751490643211,-28868.187305,0.00025962,2]
[369120440,1751490643220,-4300.54523769,0.00025972,2]
[369120442,1751490643229,-500.0,0.00025973,2]
[369120444,1751490643240,-500.0,0.00025973,2]
[369120446,1751490643249,-501.26233384,0.00025973,2]
[369120448,1751490643258,-505.96514752,0.00025973,2]
[369120450,1751490643267,-500.0,0.00025973,2]
[369120452,1751490643276,-456.34700664,0.00025973,2]
[369120454,1751490643285,-426.69437382,0.00025973,2]
[369120455,1751490643294,-216.46667754,0.00025979,2]
[369120457,1751490643303,-152.25,0.00025979,2]
[369120459,1751490643312,-152.25,0.00025979,2]
[369120461,1751490643321,-152.25,0.00025979,2]
[369120463,1751490643332,-152.25,0.00025979,2]
[369120465,1751490643342,-152.25,0.0002598,2]
[369120467,1751490643352,-152.25,0.0002598,2]
[369120469,1751490643361,-152.25,0.0002598,2]
[369120471,1751490643371,-152.25,0.0002598,2]
[369120473,1751490643380,-152.25,0.0002598,2]
[369120475,1751490643389,-500.0,0.00025989,2]
[369120477,1751490643399,-500.0,0.00025989,2]
[369120479,1751490643408,-500.0,0.00025989,2]
[369120481,1751490643417,-500.0,0.00025989,2]
[369120483,1751490643426,-500.0,0.00025989,2]
[369120485,1751490643436,-162.12958763,0.00025989,2]
[369120487,1751490643445,-327.61566878,0.00025989,2]
[369120489,1751490643454,-500.0,0.00025989,2]
[369120491,1751490643463,-500.0,0.00025989,2]
[369120493,1751490643473,-181.673018,0.00025989,2]
[369120495,1751490643483,-428.00767624,0.00025989,2]
[369120497,1751490643493,-500.0,0.00025989,2]
[369120499,1751490643503,-500.0,0.00025989,2]
[369120501,1751490643512,-500.0,0.00025989,2]
[369120503,1751490643522,-500.0,0.00025989,2]
[369120505,1751490643532,-500.0,0.00025989,2]
[369120507,1751490643541,-500.0,0.00025989,2]
[369120509,1751490643551,-500.0,0.00025989,2]
[369120511,1751490643560,-500.0,0.00025989,2]
[369120513,1751490643570,-385.80301821,0.00025989,2]
[369120515,1751490643580,-319.88408495,0.00025989,2]
[369120517,1751490643589,-500.0,0.00025989,2]
[369120519,1751490643599,-540.67030996,0.00025989,2]
[369120522,1751490643609,-500.0,0.00025989,2]
[369120524,1751490643618,-500.0,0.00025989,2]
[369120526,1751490643628,-183.60946268,0.00025989,2]
[369120528,1751490643637,-170754.89880428,0.00025989,4]
[369120592,1751490644374,-3929.39395244,0.00025989,4]
[369120594,1751490644386,-8967.2565,0.00025989,4]
[369120596,1751490644398,-26393.6263,0.00025989,4]
[369120599,1751490644409,-54825.03,0.00025989,4]
[369120609,1751490644492,-3289.65305312,0.00025989,4]
[369120695,1751490645674,-27503.80490431,0.00025989,4]
[369120696,1751490645686,-2447.13085106,0.00025989,4]
[369120718,1751490646136,-1267.63515381,0.00025989,4]
[369125849,1751490893397,515.61,0.00027397,120]
[369125854,1751491167101,150.5,0.00026022,120]
[369125855,1751491167574,150.5,0.00026012,120]
[369125856,1751491168011,150.5,0.00026002,120]
[369125858,1751491186934,151.76,0.00013699,2]
[369125860,1751491239605,539.52263622,0.00027,120]
[369125862,1751491547860,-366.0,0.000224,5]
[369125863,1751491558029,-503.0,0.00023032,2]
[369125864,1751491558053,-150.0,0.0002385,2]
[369125865,1751491565208,-8595.038427,0.0002385,2]
[369125866,1751491565232,-150.0,0.0002397,2]
[369125868,1751491629437,-150.0,0.00024327,2]
[369125869,1751491629461,-1200.0,0.00024371,2]
[369125870,1751491629489,-177.48142748,0.00024395,2]
[369125871,1751491629513,-150.0,0.00024495,2]
[369125872,1751491629536,-1000.0,0.00024529,2]
[369125873,1751491629561,-164.8,0.00024545,2]
[369125874,1751491629585,-1157.71857252,0.00024587,2]
[369125898,1751491646371,494.12,0.00027397,120]
[369125902,1751491680971,156.05,0.00021565,2]
[369125909,1751491726049,3328.42721714,0.00013368,2]
[369125910,1751491726072,3484.47721714,0.00013368,2]
[369125911,1751491726094,3484.47721714,0.00013368,2]
[369125912,1751491726114,3484.47721714,0.00013368,2]
[369125913,1751491726134,3484.47721714,0.00013368,2]
[369125914,1751491726155,3484.47721714,0.00013368,2]
[369125915,1751491726175,3484.47721714,0.00013368,2]
[369125916,1751491726197,3484.47721714,0.00013368,2]
[369125917,1751491726218,3484.47721714,0.00013368,2]
[369125918,1751491726239,3484.47721714,0.00013368,2]
[369125919,1751491726260,3484.47721714,0.00013368,2]
[369125920,1751491726282,3411.28662885,0.00013368,2]
[369125960,1751491832098,-503.0,0.00024086,2]
[369125962,1751491832107,-1007.56,0.00024283,2]
[369125964,1751491832117,-2185.4091888,0.00024311,2]
[369125966,1751491832126,-200.0,0.00024312,7]
[369125968,1751491832135,-1200.0,0.00024313,2]
[369125970,1751491832144,-5000.0,0.00024314,2]
[369125971,1751491832153,-166.0,0.00024585,2]
[369125973,1751491832162,-600.0,0.00024585,2]
[369125975,1751491832171,-300.0,0.00024586,2]
[369125977,1751491832181,-1287.85142748,0.00024587,2]
[369125979,1751491832190,-8499.5747819,0.00024699,2]
[369125981,1751491832199,-156.0,0.00024719,2]
[369125983,1751491832209,-151.0,0.00024719,2]
[369125985,1751491832218,-151.0,0.00024719,2]
[369125987,1751491832227,-151.0,0.00024719,2]
[369125989,1751491832237,-151.0,0.00024719,2]
[369125990,1751491832246,-151.0,0.00024719,2]
[369125992,1751491832255,-151.0,0.00024719,2]
[369125994,1751491832265,-151.0,0.00024719,2]
[369125996,1751491832274,-151.0,0.00024719,2]
[369125998,1751491832283,-151.0,0.00024719,2]
[369125999,1751491832292,-151.0,0.00024719,2]
[369126000,1751491832302,-151.0,0.00024719,2]
[369126001,1751491832311,-151.0,0.00024719,2]
[369126002,1751491832320,-150.0,0.00024719,2]
[369126003,1751491832329,-150.0,0.00024733,2]
[369126004,1751491832339,-16340.37345981,0.00024734,2]
[369126005,1751491832366,-7559.62654019,0.00024734,2]
[369126006,1751491832375,-150.0,0.0002474,2]
[369126007,1751491832384,-3196.53740562,0.00024883,2]
[369126008,1751491832393,-150.0,0.00024893,2]
[369126009,1751491832402,-999.99,0.00024893,2]
[369126010,1751491832411,-150.99,0.00024893,2]
[369126011,1751491832420,-200.0,0.00024898,2]
[369126012,1751491832429,-916.7512956,0.000249,12]
[369126013,1751491832439,-151.76,0.00024907,2]
[369126014,1751491832448,-150.0,0.00024918,2]
[369126015,1751491832462,-150.0,0.00024928,2]
[369126016,1751491832471,-250.0,0.00024932,7]
[369126017,1751491832481,-193.26430516,0.00024957,2]
[369126018,1751491832490,-300.0,0.0002497,2]
[369126019,1751491832499,-150.0,0.00024974,2]
[369126020,1751491832509,-155.55,0.0002498,2]
[369126021,1751491832518,-150.0,0.00024986,2]
[369126022,1751491832528,-250.0,0.00025,7]
[369126023,1751491832537,-916.75129541,0.00025072,12]
[369126024,1751491832546,-150.0,0.00025116,2]
[369126025,1751491832555,-150.0,0.00025177,2]
[369126026,1751491832564,-500.0,0.00025214,2]
[369126027,1751491832574,-916.75129541,0.00025245,12]
[369126042,1751491832897,-150.0,0.00025283,2]
[369126043,1751491832907,-150.0,0.00025353,2]
[369126044,1751491832917,-1000.0,0.00025354,2]
[369126045,1751491832926,-300.0,0.00025354,2]
[369126046,1751491832935,-1000.0,0.00025354,2]
[369126047,1751491832945,-1000.0,0.00025354,2]
[369126048,1751491832955,-1000.0,0.00025354,2]
[369126049,1751491832964,-1000.0,0.00025354,2]
[369126050,1751491832974,-1000.0,0.00025354,2]
[369126051,1751491832984,-500.0,0.00025354,2]
[369126052,1751491832993,-6912.642,0.00025354,2]
[369126053,1751491833003,-500.0,0.00025354,2]
[369126054,1751491833012,-500.0,0.00025354,2]
[369126055,1751491833022,-500.0,0.00025354,2]
[369126056,1751491833032,-1000.0,0.00025354,2]
[369126057,1751491833043,-500.0,0.00025354,2]
[369126058,1751491833053,-500.0,0.00025354,2]
[369126059,1751491833062,-300.0,0.00025354,2]
[369126060,1751491833072,-1000.0,0.00025354,2]
[369126061,1751491833082,-300.0,0.00025354,2]
[369126062,1751491833092,-393.06306098,0.00025354,2]
[369126063,1751491833102,-500.0,0.00025354,2]
[369126064,1751491833112,-300.0,0.00025354,2]
[369126065,1751491833122,-1000.0,0.00025354,2]
[369126066,1751491833132,-500.0,0.00025354,2]
[369126067,1751491833142,-300.0,0.00025354,2]
[369126068,1751491833151,-151.0,0.00025354,2]
[369126069,1751491833160,-300.0,0.00025354,2]
[369126070,1751491833170,-1000.0,0.00025354,2]
[369126071,1751491833179,-300.0,0.00025354,2]
[369126072,1751491833189,-500.0,0.00025354,2]
[369126073,1751491833199,-300.0,0.00025354,2]
[369126074,1751491833208,-151.0,0.00025354,2]
[369126075,1751491833218,-300.0,0.00025354,2]
[369126076,1751491833227,-1000.0,0.00025354,2]
[369126077,1751491833237,-500.0,0.00025354,2]
[369126078,1751491833247,-1000.0,0.00025354,2]
[369126079,1751491833257,-300.0,0.00025354,2]
[369126080,1751491833266,-151.0,0.00025354,2]
[369126081,1751491833276,-500.0,0.00025354,2]
[369126082,1751491833286,-300.0,0.00025354,2]
[369126083,1751491833296,-1000.0,0.00025354,2]
[369126084,1751491833305,-300.0,0.00025354,2]
[369126085,1751491833315,-151.0,0.00025354,2]
[369126086,1751491833324,-500.0,0.00025354,2]
[369126087,1751491833334,-300.0,0.00025354,2]
[369126088,1751491833344,-207.4,0.00025354,2]
[369126089,1751491833353,-500.0,0.00025354,2]
[369126090,1751491833363,-1000.0,0.00025354,2]
[369126091,1751491833373,-151.0,0.00025354,2]
[369126092,1751491833382,-300.0,0.00025354,2]
[369126093,1751491833392,-500.0,0.00025354,2]
[369126094,1751491833404,-500.0,0.00025354,2]
[369126095,1751491833413,-300.0,0.00025354,2]
[369126096,1751491833423,-1000.0,0.00025354,2]
[369126097,1751491833432,-151.0,0.00025354,2]
[369126098,1751491833441,-300.0,0.00025354,2]
[369126099,1751491833451,-500.0,0.00025354,2]
[369126100,1751491833460,-500.0,0.00025354,2]
[369126101,1751491833470,-300.0,0.00025354,2]
[369126102,1751491833480,-1000.0,0.00025354,2]
[369126103,1751491833490,-260.55665828,0.00025354,2]
[369126104,1751491833499,-500.0,0.00025354,2]